fUST/lending_fUST_20251011
["ID","MTS","AMOUNT","RATE_DAILY","PERIOD"]
[390690993,1760122243237,-150.0,0.0002739,2]
[390690996,1760122243248,-500.0,0.00027397,2]
[390690998,1760122243258,-266.34,0.00027397,49]
[390691001,1760122243267,-500.0,0.00027397,60]
[390691002,1760122243277,-500.0,0.00027397,60]
[390691004,1760122243286,-500.0,0.00027397,60]
[390691007,1760122243295,-500.0,0.00027397,60]
[390691010,1760122243304,-500.0,0.00027397,60]
[390691012,1760122243337,-500.0,0.00027397,60]
[390691016,1760122243347,-500.0,0.00027397,60]
[390691019,1760122243357,-500.0,0.00027397,60]
[390691021,1760122243366,-500.0,0.00027397,60]
[390691023,1760122243376,-500.0,0.00027397,60]
[390691025,1760122243386,-500.0,0.00027397,60]
[390691027,1760122243395,-500.0,0.00027397,60]
[390691029,1760122243404,-300.0,0.00027397,2]
[390691030,1760122243413,-300.0,0.00027397,2]
[390691033,1760122243423,-500.0,0.00027397,2]
[390691034,1760122243433,-500.0,0.00027397,2]
[390691037,1760122243442,-500.0,0.00027397,2]
[390691038,1760122243452,-500.0,0.00027397,2]
[390691039,1760122243463,-500.0,0.00027397,2]
[390691040,1760122243472,-500.0,0.00027397,2]
[390691041,1760122243482,-500.0,0.00027397,2]
[390691042,1760122243492,-409.69387175,0.00027397,2]
[390691043,1760122243502,-500.0,0.00027397,60]
[390691044,1760122243512,-441.94,0.00027397,60]
[390691045,1760122243522,-500.0,0.00027397,2]
[390691046,1760122243533,-500.0,0.00027397,2]
[390691047,1760122243543,-500.0,0.00027397,2]
[390691048,1760122243553,-471.12464822,0.00027397,2]
[390691049,1760122243563,-500.0,0.00027397,60]
[390691050,1760122243572,-500.0,0.00027397,60]
[390691051,1760122243583,-500.0,0.00027397,60]
[390691052,1760122243592,-500.0,0.00027397,60]
[390691053,1760122243604,-500.0,0.00027397,60]
[390691055,1760122243614,-500.0,0.00027397,60]
[390691058,1760122243624,-789.5280749,0.00027397,2]
[390691059,1760122243634,-151.0,0.00027397,30]
[390691061,1760122243644,-151.0,0.00027397,30]
[390691063,1760122243653,-151.0,0.00027397,30]
[390691065,1760122243663,-164.622305,0.00027397,30]
[390691067,1760122243672,-161.41205258,0.00027397,2]
[390691069,1760122243682,-151.0,0.00027397,30]
[390691071,1760122243692,-151.0,0.00027397,30]
[390691073,1760122243701,-151.0,0.00027397,30]
[390691075,1760122243711,-292.0,0.00027397,30]
[390691077,1760122243719,-168.0,0.00027419,2]
[390691079,1760122243730,-1679.992091,0.00027464,30]
[390691081,1760122243739,-151.0,0.00027464,30]
[390691083,1760122243748,-1679.992091,0.00027464,30]
[390691085,1760122243757,-1679.992091,0.00027464,30]
[390691087,1760122243767,-1679.992097,0.00027464,30]
[390691089,1760122243776,-151.0,0.00027464,30]
[390691091,1760122243785,-1000.0,0.00027464,2]
[390691093,1760122243794,-3000.0,0.00027464,2]
[390691095,1760122243804,-1000.0,0.00027464,2]
[390691097,1760122243813,-870.24847633,0.00027464,2]
[390691099,1760122243823,-2611.44225185,0.00027464,2]
[390691101,1760122243832,-268.07637775,0.00027464,2]
[390691103,1760122243842,-151.0,0.00027464,2]
[390691105,1760122243851,-151.0,0.00027464,2]
[390691107,1760122243860,-151.0,0.00027464,2]
[390691109,1760122243870,-155.12006696,0.00027464,2]
[390691111,1760122243881,-18603.8837,0.00027464,2]
[390691113,1760122243890,-500.0,0.00027464,2]
[390691115,1760122243900,-500.0,0.00027464,2]
[390691117,1760122243909,-151.24634167,0.00027464,2]
[390691119,1760122243919,-500.0,0.00027464,2]
[390691121,1760122243927,-500.0,0.00027464,2]
[390691123,1760122243937,-500.0,0.00027464,2]
[390691125,1760122243948,-500.0,0.00027464,2]
[390691127,1760122243958,-500.0,0.00027464,2]
[390691129,1760122243968,-500.0,0.00027464,2]
[390691131,1760122243978,-500.0,0.00027464,2]
[390691133,1760122243987,-500.0,0.00027464,2]
[390691135,1760122243997,-500.0,0.00027464,2]
[390691137,1760122244006,-500.0,0.00027464,2]
[390691139,1760122244015,-9380.79833243,0.00027481,2]
[390691141,1760122244025,-151.0,0.00027501,30]
[390691143,1760122244039,-151.0,0.00027501,30]
[390691144,1760122244048,-151.0,0.00027501,30]
[390691146,1760122244060,-151.0,0.00027501,30]
[390691148,1760122244070,-151.0,0.00027501,30]
[390691150,1760122244079,-151.0,0.00027501,30]
[390691152,1760122244088,-319.0,0.00027658,2]
[390691154,1760122244098,-319.0,0.00027666,2]
[390691156,1760122244107,-612.362703,0.00027671,30]
[390691158,1760122244116,-3188.29,0.00027674,2]
[390691160,1760122244125,-168.0,0.00027769,2]
[390691162,1760122244135,-353.0,0.00027807,2]
[390691164,1760122244144,-4000.0,0.00027836,5]
[390691166,1760122244153,-980.0,0.00027864,2]
[390691168,1760122244162,-411.0,0.00027864,2]
[390691170,1760122244171,-589.24,0.00027864,2]
[390691172,1760122244180,-178.87,0.00027864,2]
[390691174,1760122244189,-250.402368,0.00027864,30]
[390691176,1760122244199,-151.0,0.00027864,30]
[390691178,1760122244208,-500.0,0.00027944,7]
[390691180,1760122244218,-500.0,0.00027989,2]
[390691182,1760122244227,-1000.0,0.00027989,2]
[390691184,1760122244236,-1041.66666667,0.00028,3]
[390691186,1760122244245,-160.0,0.00028,3]
[390691188,1760122244256,-298.03512572,0.00028,3]
[390691190,1760122244265,-160.0,0.00028,3]
[390691192,1760122244274,-3000.0,0.00028012,2]
[390691194,1760122244284,-1434.4668512,0.00028045,2]
[390691196,1760122244292,-319.0,0.00028202,7]
[390691198,1760122244301,-394.550624,0.00028247,30]
[390691199,1760122244310,-500.0,0.00028384,5]
[390691201,1760122244319,-467.3945575,0.00028384,30]
[390691203,1760122244328,-321.7216683,0.00028384,30]
[390691205,1760122244337,-588.2885567,0.00028384,30]
[390691207,1760122244346,-500.0,0.00028468,5]
[390691209,1760122244355,-354.0,0.0002848,7]
[390691211,1760122244364,-9380.79833243,0.0002848,2]
[390691213,1760122244373,-271.8085077,0.00028488,5]
[390691215,1760122244382,-227.57678612,0.0002849,2]
[390691217,1760122244391,-628.98177974,0.0002849,2]
[390691219,1760122244400,-2513.41119183,0.0002849,2]
[390691237,1760122244559,-18761.5966649,0.0002849,2]
[390691239,1760122244568,-40473.29723747,0.000285,7]
[390691261,1760122244779,-5420.0,0.000285,7]
[390691265,1760122244807,-34917.02274274,0.000285,7]
[390691268,1760122244819,-606.53759961,0.000285,7]
[390691270,1760122244830,-5762.73593091,0.000285,7]
[390691272,1760122244839,-752.0,0.000285,2]
[390691274,1760122244849,-500.0,0.0002856,5]
[390691276,1760122244858,-302.84859387,0.00028616,22]
[390691278,1760122244867,-309.5669343,0.0002867,30]
[390691280,1760122244876,-307.1856986,0.00028697,30]
[390691282,1760122244885,-1000.0,0.00028739,2]
[390691284,1760122244895,-4000.0,0.0002876,5]
[390691286,1760122244905,-1293.84598785,0.0002876,2]
[390691288,1760122244913,-500.0,0.00028766,7]
[390691290,1760122244923,-500.0,0.00028767,30]
[390691292,1760122244931,-23697.7718784,0.00028772,120]
[390691294,1760122244940,-1041.66666667,0.0002878,120]
[390691296,1760122244949,-10598.72977479,0.00028791,2]
[390691298,1760122244958,-169.47025755,0.000288,7]
[390691300,1760122244967,-800.0,0.00028801,2]
[390691302,1760122244976,-182.96283976,0.00028803,2]
[390691304,1760122244985,-800.0,0.00028813,2]
[390691306,1760122244994,-319.0,0.00028816,2]
[390691307,1760122245006,-800.0,0.00028823,2]
[390691309,1760122245016,-3211.11877571,0.00028844,2]
[390691312,1760122245029,-3057.7659269,0.00028844,2]
[390691314,1760122245046,-4329.84507212,0.00028844,2]
[390691316,1760122245056,-151.0,0.00028874,10]
[390691318,1760122245070,-151.0,0.00028874,10]
[390691319,1760122245080,-644.0,0.00028874,10]
[390691321,1760122245090,-151.0,0.00028874,10]
[390691323,1760122245100,-151.0,0.00028874,10]
[390691325,1760122245110,-152.25446761,0.00028874,10]
[390691327,1760122245119,-151.0,0.00028874,10]
[390691329,1760122245128,-156.7887732,0.00028874,10]
[390691331,1760122245138,-261.13241851,0.00028874,10]
[390691333,1760122245147,-151.0,0.00028874,10]
[390691335,1760122245156,-260.68741844,0.00028874,10]
[390691337,1760122245166,-151.0,0.00028874,10]
[390691339,1760122245175,-110.32283703,0.00028874,10]
[390691342,1760122245186,-41.80411278,0.00028874,10]
[390691343,1760122245195,-151.73338094,0.00028874,10]
[390691345,1760122245204,-151.0,0.00028874,10]
[390691347,1760122245214,-156.98619799,0.00028874,10]
[390691349,1760122245223,-151.0,0.00028874,10]
[390691351,1760122245232,-151.0,0.00028874,10]
[390691353,1760122245241,-151.0,0.00028874,10]
[390691355,1760122245252,-151.0,0.00028874,10]
[390691357,1760122245263,-151.0,0.00028874,10]
[390691359,1760122245272,-329.0,0.00028891,7]
[390691361,1760122245281,-329.0,0.00028891,7]
[390691363,1760122245290,-329.0,0.00028891,7]
[390691366,1760122245303,-329.0,0.00028891,7]
[390691367,1760122245312,-402.89972253,0.00028891,7]
[390691369,1760122245321,-158.55802683,0.00028891,7]
[390691371,1760122245331,-329.0,0.00028891,7]
[390691373,1760122245340,-574.24545523,0.00028897,2]
[390691425,1760122245824,-151.0,0.000249,7]
[390691426,1760122245834,-151.0,0.000249,7]
[390691429,1760122245844,-151.0,0.0002499,7]
[390691430,1760122245853,-152.138977,0.00026,7]
[390691432,1760122245862,-10024.4843195,0.00028897,2]
[390691434,1760122245871,-319.0,0.00028907,2]
[390691436,1760122245881,-644.0,0.00028929,10]
[390691438,1760122245890,-151.0,0.00028929,10]
[390691440,1760122245899,-151.0,0.00028929,10]
[390691442,1760122245909,-216.8402371,0.00028929,10]
[390691444,1760122245918,-151.0,0.00028929,10]
[390691446,1760122245927,-151.0,0.00028929,10]
[390691448,1760122245936,-151.0,0.00028929,10]
[390691450,1760122245945,-151.0,0.00028929,10]
[390691452,1760122245955,-151.0,0.00028929,10]
[390691453,1760122245964,-800.0,0.0002894,2]
[390691454,1760122245973,-152.0,0.00028948,7]
[390691455,1760122245982,-152.0,0.00028948,7]
[390691456,1760122245991,-152.0,0.00028948,7]
[390691457,1760122246002,-215.33827402,0.00028948,7]
[390691458,1760122246012,-172.0,0.00028948,7]
[390691459,1760122246021,-173.95832966,0.00028948,7]
[390691460,1760122246031,-152.0,0.00028948,7]
[390691461,1760122246040,-152.0,0.00028948,7]
[390691462,1760122246050,-152.0,0.00028948,7]
[390691463,1760122246065,-152.0,0.00028948,7]
[390691464,1760122246078,-152.0,0.00028948,7]
[390691465,1760122246087,-152.0,0.00028948,7]
[390691466,1760122246097,-152.0,0.00028948,7]
[390691467,1760122246108,-152.0,0.00028948,7]
[390691469,1760122246117,-152.0,0.00028948,7]
[390691471,1760122246127,-152.0,0.00028948,7]
[390691473,1760122246138,-152.0,0.00028948,7]
[390691475,1760122246148,-152.0,0.00028948,7]
[390691476,1760122246157,-152.0,0.00028948,7]
[390691477,1760122246168,-152.0,0.00028948,7]
[390691478,1760122246177,-152.0,0.00028948,7]
[390691479,1760122246187,-152.0,0.00028948,7]
[390691480,1760122246196,-152.0,0.00028948,7]
[390691481,1760122246205,-157.0,0.00028948,7]
[390691482,1760122246215,-329.0,0.00028948,7]
[390691483,1760122246223,-329.0,0.00028948,7]
[390691484,1760122246233,-329.0,0.00028948,7]
[390691485,1760122246242,-329.0,0.00028948,7]
[390691486,1760122246251,-329.0,0.00028948,7]
[390691487,1760122246260,-329.0,0.00028948,7]
[390691488,1760122246270,-329.0,0.00028948,7]
[390691489,1760122246279,-329.0,0.00028948,7]
[390691490,1760122246288,-148.91606349,0.00028948,7]
[390691491,1760122246300,-13.08393651,0.00028948,7]
[390691492,1760122246309,-162.0,0.00028948,7]
[390691493,1760122246318,-180.15202945,0.00028948,7]
[390691494,1760122246327,-175.0,0.00028948,7]
[390691495,1760122246336,-175.0,0.00028948,7]
[390691496,1760122246345,-175.0,0.00028948,7]
[390691497,1760122246354,-174.8657094,0.00028948,7]
[390691498,1760122246364,-10598.72977473,0.0002895,2]
[390691499,1760122246373,-1.16854991,0.00028969,2]
[390691500,1760122246384,-742.66688904,0.00028969,2]
[390691503,1760122246397,-1751.082702,0.00028969,2]
[390691555,1760122246922,-151.0,0.000249,7]
[390691556,1760122246932,-151.0,0.000249,7]
[390691558,1760122246941,-151.0,0.0002499,7]
[390691560,1760122246951,-151.0,0.00026,7]
[390691562,1760122246960,-151.0,0.00026835,7]
[390691564,1760122246969,-588.2885567,0.00028384,30]
[390691566,1760122246979,-7609.40965254,0.00028969,2]
[390691568,1760122246988,-644.0,0.00028984,10]
[390691586,1760122247160,-151.0,0.00028984,10]
[390691589,1760122247170,-151.0,0.00028984,10]
[390691591,1760122247179,-151.0,0.00028984,10]
[390691593,1760122247187,-151.0,0.00028984,10]
[390691594,1760122247195,-198.0,0.00028984,10]
[390691597,1760122247205,-198.0,0.00028984,10]
[390691599,1760122247213,-151.0,0.00028984,10]
[390691601,1760122247221,-1131.9344988,0.00028989,15]
[390691603,1760122247229,-1000.0,0.00029,2]
[390691605,1760122247236,-1050.27,0.00029,2]
[390691606,1760122247243,-160.0,0.00029,10]
[390691608,1760122247252,-10598.72977473,0.00029003,2]
[390691610,1760122247260,-353.0,0.0002901,7]
[390691611,1760122247267,-644.0,0.00029038,10]
[390691613,1760122247273,-199.38589367,0.00029038,10]
[390691615,1760122247280,-151.0,0.00029038,10]
[390691616,1760122247287,-198.0,0.00029038,10]
[390691618,1760122247294,-151.0,0.00029038,10]
[390691620,1760122247301,-198.0,0.00029038,10]
[390691622,1760122247308,-160.0,0.0002904,5]
[390691624,1760122247316,-10598.72977473,0.00029057,2]
[390691626,1760122247325,-200.0,0.0002906,120]
[390691628,1760122247332,-353.0,0.00029066,2]
[390691629,1760122247338,-750219.8595,0.00029069,2]
[390691631,1760122247345,-433719.8874,0.00029069,2]
[390691633,1760122247359,-162.81,0.00029072,120]
[390691635,1760122247366,-500.0,0.00029073,5]
[390691637,1760122247375,-500.0,0.00029073,5]
[390691639,1760122247383,-500.0,0.00029073,5]
[390691641,1760122247392,-517.02984979,0.00029073,5]
[390691642,1760122247402,-500.0,0.00029073,5]
[390691644,1760122247411,-500.0,0.00029073,5]
[390691646,1760122247420,-500.0,0.00029073,5]
[390691648,1760122247430,-500.0,0.00029073,5]
[390691650,1760122247439,-500.0,0.00029073,5]
[390691652,1760122247449,-566.36803254,0.00029073,5]
[390691654,1760122247457,-592.89641741,0.00029073,5]
[390691656,1760122247466,-500.0,0.00029073,5]
[390691658,1760122247477,-500.0,0.00029073,5]
[390691660,1760122247487,-644.0,0.00029093,10]
[390691661,1760122247496,-192.40420351,0.00029093,10]
[390691662,1760122247507,-152.89660167,0.00029093,10]
[390691664,1760122247516,-423.08707,0.000291,120]
[390691666,1760122247524,-200.0,0.000291,120]
[390691667,1760122247533,-10598.72977473,0.0002911,2]
[390691669,1760122247543,-18298.4767265,0.0002911,2]
[390691671,1760122247554,-163.5,0.00029115,4]
[390691673,1760122247564,-161.13,0.00029115,4]
[390691675,1760122247574,-200.0,0.0002913,120]
[390691677,1760122247585,-644.0,0.00029148,10]
[390691679,1760122247595,-321.0,0.00029155,120]
[390691681,1760122247605,-200.0,0.0002916,120]
[390691683,1760122247614,-10598.72977473,0.00029163,2]
[390691684,1760122247623,-319.0,0.00029172,7]
[390691686,1760122247632,-1050.27,0.00029174,2]
[390691688,1760122247642,-200.0,0.0002919,120]
[390691690,1760122247651,-354.0,0.00029195,2]
[390691692,1760122247661,-200.0,0.00029197,3]
[390691694,1760122247670,-644.0,0.00029203,10]
[390691696,1760122247680,-588.2885567,0.00029205,30]
[390691698,1760122247689,-168.0,0.00029206,2]
[390691700,1760122247697,-10598.72977473,0.00029216,2]
[390691702,1760122247706,-200.0,0.00029223,120]
[390691704,1760122247715,-1000.0,0.00029257,4]
[390691706,1760122247724,-644.0,0.00029258,10]
[390691707,1760122247733,-166.40526305,0.00029269,2]
[390691709,1760122247742,-10598.72977473,0.00029269,2]
[390691711,1760122247752,-45337.50702657,0.00029269,7]
[390691713,1760122247763,-22191.03194195,0.00029269,7]
[390691716,1760122247774,-11831.56142009,0.00029269,7]
[390691718,1760122247785,-83947.70197703,0.00029269,7]
[390691754,1760122248107,-151.0,0.000249,7]
[390691756,1760122248115,-151.0,0.000249,7]
[390691758,1760122248123,-151.0,0.0002499,7]
[390691760,1760122248131,-27.0,0.0002499,7]
[390691762,1760122248142,-124.0,0.0002499,7]
[390691764,1760122248150,-153.012223,0.00026,7]
[390691766,1760122248158,-151.0,0.00026,7]
[390691768,1760122248166,-151.0,0.00026835,7]
[390691770,1760122248174,-13373.95692302,0.00029269,7]
[390691773,1760122248183,-51189.90023714,0.00029269,7]
[390694667,1760122924347,2308.0,0.00028767,120]
[390694678,1760123280282,152.44,0.00015135,2]
[390694679,1760123280629,152.44,0.00015135,2]
[390694734,1760123432119,-164.0,0.0001726,3]
[390694736,1760123432129,-1000.0,0.00017808,2]
[390694738,1760123432139,-200.0,0.00018997,2]
[390694740,1760123432148,-150.0,0.00018997,2]
[390694742,1760123432158,-603.1,0.00019025,2]
[390694743,1760123432167,-160.0,0.00019594,2]
[390694745,1760123432178,-172.5,0.00019597,2]
[390694747,1760123432187,-526.02426037,0.00020144,2]
[390694749,1760123432197,-195.0,0.00020197,2]
[390694751,1760123432206,-160.0,0.00020714,2]
[390694753,1760123432215,-1206.2,0.00020755,2]
[390694755,1760123432225,-217.5,0.00020797,2]
[390694757,1760123432234,-298.12933428,0.00021297,2]
[390694761,1760123432243,-300.0,0.00021396,2]
[390694765,1760123432252,-300.0,0.00021396,2]
[390694768,1760123432262,-1200.0,0.00021396,2]
[390694772,1760123432272,-4875.54640535,0.00021397,2]
[390694781,1760123432307,-443.97824018,0.00021397,2]
[390694792,1760123432370,-727.73325423,0.00021397,2]
[390694794,1760123432385,-461.41905939,0.00021397,2]
[390694898,1760123437698,-1110.91819394,0.00021397,2]
[390694900,1760123437710,-1820.95596561,0.00021397,2]
[390694902,1760123437721,-265.12036769,0.00021397,2]
[390694904,1760123437734,-607.50848449,0.00021397,2]
[390694907,1760123437746,-2665.04487729,0.00021397,2]
[390694916,1760123437822,-7372.01451814,0.00021397,2]
[390694918,1760123437833,-279.10748082,0.00021397,2]
[390694920,1760123437844,-4811.18202768,0.00021397,2]
[390694922,1760123437855,-6025.11660564,0.00021397,2]
[390694924,1760123437865,-240.0,0.00021397,2]
[390694927,1760123437874,-160.0,0.0002188,2]
[390694929,1760123437883,-298.03512572,0.0002188,2]
[390694931,1760123437893,-262.5,0.00021997,2]
[390694933,1760123437902,-94.03847567,0.0002235,2]
[390695127,1760123439851,-80.23980003,0.0002235,2]
[390695128,1760123439860,-285.46019997,0.00022485,2]
[390695129,1760123439872,-761.33082744,0.00022485,2]
[390695130,1760123439910,-762.51897259,0.00022485,2]
[390695131,1760123439920,-1039.3103145,0.00022593,2]
[390695132,1760123439931,-1437.96156956,0.00022593,2]
[390695319,1760123442880,-2041.40866404,0.00022593,2]
[390695321,1760123442889,-160.0,0.00023,2]
[390695323,1760123442899,-271.8085077,0.00023083,5]
[390695325,1760123442908,-749.0,0.00023375,2]
[390695327,1760123442917,-711.41,0.0002395,2]
[390695329,1760123442926,-3000.0,0.00024,2]
[390695331,1760123442935,-3000.0,0.0002401,2]
[390695333,1760123442944,-3000.0,0.0002402,2]
[390695335,1760123442954,-3000.0,0.0002403,2]
[390695337,1760123442963,-3000.0,0.0002404,2]
[390695339,1760123442973,-3000.0,0.0002405,2]
[390695341,1760123442982,-3000.0,0.0002406,2]
[390695343,1760123442991,-3000.0,0.0002407,2]
[390695345,1760123443000,-460.549,0.00024071,5]
[390695347,1760123443010,-5589.094515,0.0002408,2]
[390695349,1760123443020,-2412.41,0.00024214,2]
[390695351,1760123443029,-200.0,0.00024658,15]
[390695353,1760123443038,-200.0,0.000251,7]
[390695355,1760123443047,-980.0,0.0002549,2]
[390695357,1760123443056,-630.0,0.0002549,2]
[390695359,1760123443065,-74.31931307,0.0002549,2]
[390695362,1760123443077,-2084.68068693,0.0002549,2]
[390695364,1760123443085,-3015.51,0.00025944,2]
[390695366,1760123443094,-600.0,0.00025981,2]
[390695368,1760123443104,-160.30931307,0.000261,7]
[390695370,1760123443115,-39.69068693,0.000261,7]
[390695372,1760123443124,-289.711719,0.00026229,2]
[390695374,1760123443133,-380.0,0.00026792,2]
[390695376,1760123443143,-4508.69,0.0002697,10]
[390695378,1760123443151,-3757.24,0.0002698,10]
[390695380,1760123443161,-224.34472324,0.0002699,2]
[390695385,1760123443198,-5304.513034,0.0002699,2]
[390695980,1760123653815,723.334028,0.00013699,2]
[390695982,1760123733718,1000.0,0.00028767,120]
[390696254,1760124632671,-7127.83317946,0.00017,2]
[390696255,1760124632682,-200.0,0.00017,2]
[390696256,1760124632692,-183.0,0.00017315,3]
[390696257,1760124632703,-150.0,0.00017315,2]
[390696258,1760124632717,-172.5,0.00017915,2]
[390696259,1760124632728,-195.0,0.00018515,2]
[390696260,1760124632737,-749.0,0.00019061,2]
[390696261,1760124632747,-300.0,0.00019062,2]
[390696263,1760124632757,-5542.8666387,0.00019063,7]
[390696264,1760124632766,-217.5,0.00019115,2]
[390696265,1760124632776,-577.96,0.0001968,2]
[390696267,1760124632787,-240.0,0.00019715,2]
[390696269,1760124632797,-526.02426037,0.00019773,2]
[390696271,1760124632807,-723.334028,0.00020187,2]
[390696273,1760124632817,-420.0,0.00020776,2]
[390696275,1760124632826,-1155.93,0.0002147,2]
[390696277,1760124632835,-12692.24329822,0.000215,2]
[390696278,1760124632845,-160.0,0.00021968,2]
[390696279,1760124632854,-161.8204597,0.00022545,2]
[390696280,1760124632863,-167.0,0.00022645,2]
[390696281,1760124632872,-810.50737819,0.000229,2]
[390696282,1760124632881,-314.0,0.00022935,2]
[390696283,1760124632890,-150.0,0.00022973,2]
[390696284,1760124632899,-500.0,0.00022973,2]
[390696285,1760124632908,-500.0,0.00022973,2]
[390696286,1760124632917,-500.0,0.00022973,2]
[390696287,1760124632926,-500.0,0.00022973,2]
[390696288,1760124632935,-500.0,0.00022973,2]
[390696289,1760124632945,-1139.8845859,0.0002299,2]
[390696290,1760124632956,-51842.98416672,0.0002299,2]
[390696291,1760124632971,-5822.74,0.0002299,10]
[390696292,1760124632983,-20355.64201794,0.00023,14]
[390696293,1760124632995,-232113.46617326,0.00023,7]
[390696294,1760124633013,-1515.8,0.00023,7]
[390696344,1760124638160,-281.94,0.00022999,2]
[390696349,1760124638201,-218.06,0.00022999,2]
[390696351,1760124638210,-217.21919509,0.00022999,2]
[390696353,1760124638226,-370.1371025,0.00022999,2]
[390696355,1760124638236,-500.0,0.00022999,2]
[390696357,1760124638246,-301.85063528,0.00022999,2]
[390696359,1760124638256,-500.0,0.00022999,2]
[390696361,1760124638265,-500.0,0.00022999,2]
[390696363,1760124638276,-500.0,0.00022999,2]
[390696364,1760124638286,-500.0,0.00022999,2]
[390696365,1760124638295,-500.0,0.00022999,2]
[390696366,1760124638305,-384.31721657,0.00022999,2]
[390696367,1760124638315,-500.0,0.00022999,2]
[390696368,1760124638325,-500.0,0.00022999,2]
[390696369,1760124638335,-500.0,0.00022999,2]
[390696370,1760124638344,-215.50156693,0.00022999,2]
[390696371,1760124638354,-500.0,0.00022999,2]
[390696372,1760124638363,-500.0,0.00022999,2]
[390696373,1760124638372,-500.0,0.00022999,2]
[390696374,1760124638382,-93342.19415951,0.00023,7]
[390696375,1760124638394,-13052.3905476,0.00023,7]
[390696376,1760124638406,-14358.51857286,0.00023,7]
[390696377,1760124638416,-15956.37189165,0.00023,7]
[390696378,1760124638428,-8079.2,0.00023,7]
[390696379,1760124638439,-11619.0,0.00023,7]
[390696381,1760124638453,-1669.6959942,0.00023,7]
[390696383,1760124638464,-1165.0,0.00023,7]
[390696386,1760124638482,-20499.99999952,0.00023,7]
[390696388,1760124638497,-23300.51626628,0.00023,7]
[390696390,1760124638507,-27807.52330593,0.00023,2]
[390696392,1760124638517,-160.0,0.00023,7]
[390696394,1760124638526,-15541.62726798,0.0002301,3]
[390696397,1760124638542,-3298.39273302,0.0002301,3]
[390696399,1760124638552,-160.0,0.0002301,3]
[390696401,1760124638563,-228.52332229,0.0002311,2]
[390696403,1760124638573,-1733.89,0.00023259,2]
[390696404,1760124638582,-1000.0,0.00023521,2]
[390696407,1760124638593,-500.0,0.00023521,2]
[390696409,1760124638603,-500.0,0.00023521,2]
[390696411,1760124638612,-632.56765264,0.00023521,2]
[390696413,1760124638624,-1000.0,0.00023521,2]
[390696415,1760124638633,-160.0,0.000237,7]
[390696417,1760124638642,-271.8085077,0.00023731,5]
[390696419,1760124638651,-1048.0021162,0.00023865,2]
[390696421,1760124638661,-810.50737819,0.0002394,2]
[390696423,1760124638670,-1000.0,0.00024068,2]
[390696425,1760124638680,-1000.0,0.00024068,2]
[390696427,1760124638691,-160.0,0.000244,7]
[390696429,1760124638700,-500.0,0.000244,7]
[390696430,1760124638713,-238.53,0.0002451,7]
[390696432,1760124638728,-161.82045969,0.000248,2]
[390696434,1760124638738,-810.50737819,0.00024979,2]
[390696436,1760124638749,-2311.85,0.00025048,2]
[390696438,1760124638760,-200.0,0.000251,7]
[390696440,1760124638770,-200.0,0.0002551,7]
[390696442,1760124638780,-500.0,0.00025973,2]
[390696445,1760124638792,-500.0,0.00025973,2]
[390696447,1760124638802,-500.0,0.00025973,2]
[390696449,1760124638811,-500.0,0.00025973,2]
[390696451,1760124638821,-500.0,0.00025973,2]
[390696452,1760124638831,-500.0,0.00025973,2]
[390696454,1760124638840,-600.0,0.00025981,2]